Cogmind - Beta 13 @@@ ROGUE MODE // 2024.02.28 @ 11:59:53 Player: Infomantis Result: Self-destructed Performance ------------- Evolutions (0) 0 Regions Visited (4) 800 Robots Destroyed (30) 150 Value Destroyed (708) 708 Prototype IDs (10) 200 Alien Tech Used (0) 0 Bonus (-21) -21 TOTAL SCORE: 1837 Bonus ------- Follower Combat Kills 60 Friendly Fire -81 Cogmind --------- Core Integrity 30/250 Matter 290/300 Energy 180/180 System Corruption 0% Temperature Cool (0) Movement Treading (160) Location -9/Recycling Parts ------- > --- POWER (1) -------- Meta Core > --- PROPULSION (2+1) - Improved Treads Improved Treads Improved Treads (+) > --- UTILITY (2) ------ High-capacity Storage Unit Gun Armor > --- WEAPON (2+3) ----- Riot Gun (+) Beamcaster Slug Cannon > --- INVENTORY (20) --- Light Nuclear Core Light Angular Momentum Engine Subdweller Monowheel Subdweller Monowheel Improved Heat Sink Small Storage Unit Seismic Detector Makeshift Hacking Suite Grenade Launcher Shrapnel Trap Piercing Trap Scrap Shield Fragment (49) Scrap Shield Fragment (48) Scrap Shield Fragment (48) Scrap Shield Fragment (43) Scrap Shield Fragment (41) Scrap Shield Fragment (40) Scrap Shield Fragment (30) Peak State ------------ > --- POWER ------------ Meta Core > --- PROPULSION ------- Improved Treads Improved Treads Improved Treads > --- UTILITY ---------- High-capacity Storage Unit Gun Armor > --- WEAPON ----------- Riot Gun Beamcaster Slug Cannon > --- INVENTORY -------- Light Nuclear Core Light Angular Momentum Engine Subdweller Monowheel Subdweller Monowheel Improved Heat Sink Small Storage Unit Seismic Detector Makeshift Hacking Suite Grenade Launcher Shrapnel Trap Piercing Trap Scrap Shield Fragment Scrap Shield Fragment Scrap Shield Fragment Scrap Shield Fragment Scrap Shield Fragment Scrap Shield Fragment Scrap Shield Fragment [Rating: 44] Favorites ----------- Power Meta Core Engine Light Angular Momentum Engine Power Core Meta Core Propulsion Improved Treads Treads Improved Treads Wheel Subdweller Monowheel Utility High-capacity Storage Unit Device Seismic Detector Storage High-capacity Storage Unit Protection Scrap Shield Weapon Light Cannon Energy Gun Riot Gun Energy Cannon Subdweller Beam Cannon Ballistic Gun Light Assault Rifle Ballistic Cannon Light Cannon Launcher Grenade Launcher Build | -11 -10 -10 -10 -9 ------- Run | Yrd Mat Min Sub Rec Slots Evolved . | . . . . . Power . | . . . . . Propulsion . | . . . . . Utility . | . . . . . Weapon . | . . . . . Parts Attached 44 | 7 3 3 30 1 Power 6 | 1 . 2 3 . Engine 4 | 1 . 1 2 . Core 2 | . . 1 1 . Reactor . | . . . . . Propulsion 9 | 2 2 . 5 . Treads 7 | 2 2 . 3 . Leg . | . . . . . Wheel 2 | . . . 2 . Hover . | . . . . . Flight . | . . . . . Utility 11 | 2 . . 8 1 Device 2 | 1 . . 1 . Storage 3 | 1 . . 2 . Processor . | . . . . . Hackware . | . . . . . Protection 6 | . . . 5 1 Artifact . | . . . . . Weapon 18 | 2 1 1 14 . Energy Gun 3 | . . . 3 . Energy Cannon 1 | . . . 1 . Ballistic Gun 9 | 2 1 1 5 . Ballistic Cannon 2 | . . . 2 . Launcher 3 | . . . 3 . Special Weapon . | . . . . . Impact Weapon . | . . . . . Slashing Weapon . | . . . . . Piercing Weapon . | . . . . . Special Melee Weapon . | . . . . . Unidentified Prototypes 1 | . . . 1 . Parts Lost 2 | . . . 2 . Power 1 | . . . 1 . Propulsion . | . . . . . Utility 1 | . . . 1 . Weapon . | . . . . . Highest Loss Streak 2 | . . . 2 . To Critical Strikes . | . . . . . Average Slot Usage (%) 90 | . 100 100 87 90 Engine 4 | . 14 5 3 . Core 7 | . . 8 7 10 Treads 25 | . 28 28 24 30 Wheel 3 | . . . 4 . Device 3 | . 14 14 . . Storage 11 | . 14 14 11 10 Protection 8 | . . . 11 10 Energy Gun 1 | . . . 1 20 Energy Cannon 1 | . . . 1 . Ballistic Gun 10 | . 28 28 6 . Ballistic Cannon 10 | . . . 13 10 Naked Turns . | . . . . . Heaviest Build 79 | 14 14 13 79 79 Greatest Support 69 | 40 46 46 69 69 Greatest Overweight (x) 3 | . . . 3 1 Average Overweight (x) 1 | . . . 1 . Largest Inventory Capacity 20 | 8 8 8 20 20 Average Capacity 16 | 7 8 8 18 20 Most Carried 20 | 8 8 8 20 19 Average Carried 14 | 4 7 7 16 18 Final Capacity 20 | 8 8 8 20 20 Final Carried 19 | 8 8 8 19 18 Class Distribution -------------------- 56% | Subdweller-Mutant 31% | Mutant 12% | Subdweller-Tank Dominant Class ---------------- Mutant | -10/Materials Mutant | -10/Mines Subdweller-Mutant | -10/Subcaves Subdweller-Tank | -9/Recycling Resources | -11 -10 -10 -10 -9 ----------- Run | Yrd Mat Min Sub Rec Matter Collected 1248 | 302 20 128 798 . Remotely . | . . . . . Salvage Created 819 | 104 37 370 308 . Parts 62 | 7 8 26 21 . Haulers Intercepted . | . . . . . Recyclers Shooed . | . . . . . Parts Field Recycled . | . . . . . Retrieved Matter . | . . . . . Parts Self-Destructed 9 | . . . 9 . Prevented . | . . . . . Kills | -11 -10 -10 -10 -9 ------- Run | Yrd Mat Min Sub Rec Combat Hostiles Destroyed 26 | . 3 10 13 . Guns 16 | . 3 10 3 . Cannons 6 | . . . 6 . AOE 4 | . . . 4 . Classes Destroyed 5 | 2 1 1 1 . Tunneler 2 | 2 . . . . Recycler 2 | 1 . 1 . . Swarmer 12 | . 3 6 3 . Grunt 4 | . . 4 . . Subdweller 10 | . . . 10 . Best Kill Streak 4 | 3 3 4 3 . Combat Bots Only 4 | . 3 4 3 . Max Kills in Single Turn 3 | 1 1 1 3 . Gunslinging . | . . . . . Exploded 3 | . . . 3 . Melee . | . . . . . Uniques/NPCs Destroyed . | . . . . . Combat | -11 -10 -10 -10 -9 -------- Run | Yrd Mat Min Sub Rec Hostile Shots Fired 126 | . 9 48 69 . Missed 38 | . 2 15 21 . Damage Taken 1399 | . 60 382 957 . Core 220 | . . 58 162 . Absorbed by Shields . | . . . . . Core Remaining (%) 100 | 100 . . . . Volleys Fired 145 | 8 5 34 98 . Largest 2 | 2 2 2 2 . Hottest 83 | 40 40 40 83 . Shots Fired 223 | 16 10 68 129 . Gun 120 | 16 10 68 26 . Cannon 93 | . . . 93 . Launcher 10 | . . . 10 . Special . | . . . . . Kinetic 196 | 16 10 68 102 . Thermal 17 | . . . 17 . Explosive 10 | . . . 10 . Electromagnetic . | . . . . . Robot Hit Streak 18 | 7 5 11 18 . Robot Miss Streak 3 | 1 1 3 3 . Penetration Max . | . . . . . Secondary Targets 1 | . . 1 . . Max Gunslinging Chain 1 | . . 1 . . Shots Hit Robots 119 | 13 6 47 53 . Core Hits 65 | 5 3 24 33 . Critical Kills . | . . . . . Critical Parts Destroyed 1 | . . . 1 . Critical Strikes 4 | . . . 4 . Destroy 2 | . . . 2 . Blast 2 | . . . 2 . Melee Attacks . | . . . . . Impact . | . . . . . Slashing . | . . . . . Piercing . | . . . . . Sneak Attacks . | . . . . . Combat Hostiles . | . . . . . Follow-up Attacks . | . . . . . Damage Inflicted 1936 | 130 69 382 1355 . Guns 937 | 130 69 382 356 . Cannons 597 | . . . 597 . Explosions 402 | . . . 402 . Melee . | . . . . . Ramming . | . . . . . Kinetic 1534 | 130 69 382 953 . Thermal . | . . . . . Explosive 402 | . . . 402 . Electromagnetic . | . . . . . Impact . | . . . . . Slashing . | . . . . . Piercing . | . . . . . Highest Corruption . | . . . . . Average Corruption . | . . . . . Corruption Purged . | . . . . . Corruption Blocked . | . . . . . Overload Shots . | . . . . . Overflow Damage 6 | . . . 6 . Projectiles . | . . . . . Explosions 6 | . . . 6 . Melee . | . . . . . Knockbacks 9 | . . . 9 . Impact . | . . . . . Kinetic 8 | . . . 8 . Secondary 1 | . . . 1 . Self-Inflicted Damage 45 | . . . 45 . Shots 2 | . . . 2 . Rammed . | . . . . . Targets Rammed . | . . . . . Kicked . | . . . . . Crushed . | . . . . . Highest Temperature 60 | . . 56 60 . Average Temperature 22 | . . 26 18 . Received Heat Transfer 291 | . . 147 144 . Siege Activations . | . . . . . Robots Corrupted . | . . . . . Combat Hostiles . | . . . . . Parts Fried . | . . . . . Impact Corruptions . | . . . . . Robots Melted . | . . . . . Combat Hostiles . | . . . . . Parts Melted . | . . . . . Heat Transferred . | . . . . . Parts Sabotaged . | . . . . . Parts Stolen . | . . . . . Parts Stripped . | . . . . . Power Chain Reactions . | . . . . . Alert | -11 -10 -10 -10 -9 ------- Run | Yrd Mat Min Sub Rec Peak Influence 291 | 15 94 291 . 116 Initial 116 | . 9 36 . 116 Average 122 | 5 51 176 . 116 Maximum Alert Level 1 | . . 1 . . Low Security (%) 79 | 100 100 66 . 100 Level 1 20 | . . 33 . . Level 2 . | . . . . . Level 3 . | . . . . . Level 4 . | . . . . . Level 5 . | . . . . . High Security . | . . . . . Max Security . | . . . . . Squads Dispatched 1 | . 1 . . . Investigation 1 | . 1 . . . Extermination . | . . . . . Reinforcement . | . . . . . Assault . | . . . . . Garrison . | . . . . . Intercept . | . . . . . Searches Triggered . | . . . . . Construction Impeded . | . . . . . Haulers Reinforced . | . . . . . Active Scanning Responses . | . . . . . Cargo Convoy Interrupts . | . . . . . Stealth | -11 -10 -10 -10 -9 --------- Run | Yrd Mat Min Sub Rec Distress Signals 1 | . 1 . . . Communications Jammed . | . . . . . Distress Signals . | . . . . . Times Spotted 85 | . 5 12 68 . Peak Tracking Total 6 | . 4 3 6 . Tactical Retreats 4 | . . 2 2 . Traps | -11 -10 -10 -10 -9 ------- Run | Yrd Mat Min Sub Rec Traps Triggered 1 | . 1 . . . Indirectly . | . . . . . Trap Hack Attempts . | . . . . . Triggered . | . . . . . Disarmed . | . . . . . Reprogrammed . | . . . . . Reused . | . . . . . Traps Extracted . | . . . . . Installed 1 | . . . 1 . Triggered . | . . . . . Most Traps Carried 3 | . . . 3 2 Machines | -11 -10 -10 -10 -9 ---------- Run | Yrd Mat Min Sub Rec Machines Disabled 2 | . . . 2 . Max in Single Turn 1 | . . . 1 . Machines Repaired . | . . . . . Machines Dismantled . | . . . . . Machines Sabotaged . | . . . . . Overloaded Fab Kills . | . . . . . Hacking | -11 -10 -10 -10 -9 --------- Run | Yrd Mat Min Sub Rec Machines Accessed 2 | . . . 2 . Terminals . | . . . . . Fabricators . | . . . . . Repair Stations . | . . . . . Recycling Units . | . . . . . Scanalyzers . | . . . . . Garrison Access . | . . . . . Total Hacks 12 | . . . 12 . Successful 12 | . . . 12 . Failed . | . . . . . Catastrophic . | . . . . . Database Lockouts . | . . . . . Manual . | . . . . . Terminals . | . . . . . Fabricators . | . . . . . Repair Stations . | . . . . . Recycling Units . | . . . . . Scanalyzers . | . . . . . Garrison Access . | . . . . . Terminal Hacks 12 | . . . 12 . Record 11 | . . . 11 . Derelict Proto ID Bank 1 | . . . 1 . Fabricator Hacks . | . . . . . Repair Station Hacks . | . . . . . Recycling Unit Hacks . | . . . . . Scanalyzer . | . . . . . Garrison Access Hacks . | . . . . . Unauthorized Hacks . | . . . . . Terminals . | . . . . . Fabricators . | . . . . . Repair Stations . | . . . . . Recycling Units . | . . . . . Scanalyzers . | . . . . . Garrison Access . | . . . . . Data Cores Recovered . | . . . . . Used . | . . . . . Hacking Detections . | . . . . . Full Trace Events . | . . . . . Feedback Events . | . . . . . Feedback Blocked . | . . . . . Robot Schematics Acquired . | . . . . . Robots Built . | . . . . . Authchips . | . . . . . Time . | . . . . . Total Robot Build Rating . | . . . . . Part Schematics Acquired . | . . . . . Parts Built . | . . . . . Authchips . | . . . . . Time . | . . . . . Total Part Build Rating . | . . . . . Parts Repaired . | . . . . . Time . | . . . . . Parts Recycled . | . . . . . Recycled Matter . | . . . . . Retrieved Matter . | . . . . . Retrieved Components . | . . . . . Parts Scanalyzed . | . . . . . Part Schematics Acquired . | . . . . . Parts Damaged . | . . . . . Bothacking | -11 -10 -10 -10 -9 ------------ Run | Yrd Mat Min Sub Rec Used RIF Installer . | . . . . . Robots Hacked . | . . . . . Non-combat . | . . . . . Combat . | . . . . . Robot Hacks Applied . | . . . . . Relay Couplers Released . | . . . . . Fabnet Peak Effective % . | . . . . . Robots Rewired . | . . . . . Allies Hacked . | . . . . . Hacks Repelled . | . . . . . Allies | -11 -10 -10 -10 -9 -------- Run | Yrd Mat Min Sub Rec Total Allies 3 | . . 3 . . Largest Group 3 | . . 3 3 . Highest-Rated Group 40 | . . 40 40 . Highest-Rated Ally 16 | . . 16 16 . Total Orders . | . . . . . Ally Attacks 29 | . . . 29 . Total Damage 286 | . . . 286 . Kills 3 | . . . 3 . Allies Corrupted . | . . . . . Allies Melted . | . . . . . Intel | -11 -10 -10 -10 -9 ------- Run | Yrd Mat Min Sub Rec Robot Analysis Total . | . . . . . Derelict Logs Recovered 1 | . . . 1 . Drone Launches . | . . . . . Drone Recoveries . | . . . . . Exploration | -11 -10 -10 -10 -9 ------------- Run | Yrd Mat Min Sub Rec Turns Passed 4294 | 176 218 674 3189 37 Spaces Moved 2062 | 89 119 349 1490 15 Core 8 | 8 . . . . Treads 1450 | 81 119 349 886 15 Legs . | . . . . . Wheels 604 | . . . 604 . Hover . | . . . . . Flight . | . . . . . Fastest Speed 50 | 50 160 160 120 160 Average Speed 183 | 150 160 160 191 234 Slowest Speed 240 | 160 160 160 240 240 Overloaded Moves . | . . . . . Propulsion Burnouts . | . . . . . Robots Hopped . | . . . . . Cave-ins Triggered . | . . . . . Exploration Rate (%) 30 | 6 28 47 69 3 Regions Visited 4 Branch Regions 3 Pre-discovered Areas . | . . . . . Known Exits Taken . | . . . . . Unknown Exits Taken 4 | 1 1 1 1 . Scrap Searched 10 | . . 1 9 . Spaces Dug 18 | . . . 18 . Terrain Destroyed 88 | . . . 88 . Melee . | . . . . . Projectile 25 | . . . 25 . AOE 63 | . . . 63 . Terrain Rammed . | . . . . . Walls Destroyed . | . . . . . Machines Disabled . | . . . . . Actions | -11 -10 -10 -10 -9 --------- Run | Yrd Mat Min Sub Rec Total 2378 | 114 142 412 1693 17 Wait 45 | 2 3 22 18 . Move 2058 | 88 118 348 1489 15 Hop . | . . . . . Pick Up 41 | 9 5 1 26 . Fast Attach 19 | 6 . . 13 . Attach 10 | 1 . . 8 1 Detach 5 | . . . 5 . Swap 15 | . 3 3 9 . Drop 35 | . 8 4 22 1 Fire 145 | 8 5 34 98 . Melee . | . . . . . Ram . | . . . . . Kick . | . . . . . Crush . | . . . . . Escape Stasis . | . . . . . Rewire . | . . . . . Trap 1 | . . . 1 . Miscellaneous 4 | . . . 4 . Route ------- -11/Scrapyard -10/Materials -10/Mines (discovered 3 exits: [*Mat] / [*Exi] / *Sub) -10/Subcaves (discovered 3 exits: [*Mat x2] / [*Rec]) -9/Recycling History --------- Turn | Location | Event 47 | -11/Scrapyard | Discovered new exit (range 16) 177 | -11/Scrapyard | Entered Materials 262 | -10/Materials | Discovered new exit (range 14) 343 | -10/Materials | Build established: Mutant 395 | -10/Materials | Entered Mines 885 | -10/Mines | Discovered new exit (range 15) 904 | -10/Mines | Assisted by bots powering up and referring to "LRC-V3" 947 | -10/Mines | Discovered new exit (range 7) 995 | -10/Mines | Deemed a non-threat by the Exiles lab entrance 995 | -10/Mines | Discovered new exit (range 5) 1069 | -10/Mines | Entered Subcaves 1069 | -10/Subcaves | Accompanied by 3 allies 1236 | -10/Subcaves | Discovered new exit (range 16) 1308 | -10/Subcaves | Ambushed by swarm of Subdwellers 1363 | -10/Subcaves | Lost 4 allies 1415 | -10/Subcaves | Shifting Twisted Machinery released Scrap Shield 1419 | -10/Subcaves | Shifting Twisted Machinery released Sub. Machine Gun 1468 | -10/Subcaves | Learned Materials emergency access door positions 1473 | -10/Subcaves | Visited Clippyterm 1630 | -10/Subcaves | Build established: Subdweller-Mutant 1801 | -10/Subcaves | Ambushed by Subdweller buried in earth 1841 | -10/Subcaves | Discovered new exit (range 15) 2116 | -10/Subcaves | Disturbed a concealed Subdweller 2220 | -10/Subcaves | A Subdweller sparked back to life 2220 | -10/Subcaves | A Subdweller sparked back to life 2220 | -10/Subcaves | A Subdweller sparked back to life 2234 | -10/Subcaves | Core integrity fell below 50% 2260 | -10/Subcaves | Found Prototype Power Core 2260 | -10/Subcaves | Identified Meta Core 2261 | -10/Subcaves | Attached Meta Core, gained temporary slots: Propulsion, Utility, Weapon 2540 | -10/Subcaves | Shifting Twisted Machinery released Mak. Hacking Suite 2678 | -10/Subcaves | Shifting Twisted Machinery released Shrapnel Trap 3216 | -10/Subcaves | Shifting Twisted Machinery released Sub. Monowheel 3342 | -10/Subcaves | A swath of the cavern ceiling suddenly collapsed 3365 | -10/Subcaves | Core integrity fell below 20% 3436 | -10/Subcaves | Discovered new exit (range 4) 3756 | -10/Subcaves | Visited 4L-MR0's lab 3803 | -10/Subcaves | Found Gun Armor 4041 | -10/Subcaves | Build established: Subdweller-Tank 4258 | -10/Subcaves | Entered Recycling 4294 | -9/Recycling | Attached Gun Armor, gained temporary slots: Weapon x2 4295 | -9/Recycling | Self-destructed Last Messages --------------- as if it were useless junk..." 03797_ Slug penetrates Testing Chamber. 03797_ Testing Chamber breached. 03803_ Acquired Gun Armor. 04059_ Acquired 4 matter. 04068_ Acquired 2 matter. 04071_ Acquired 3 matter. 04076_ Acquired 7 matter. 04205_ Acquired 82 matter. 04210_ Acquired 2 matter. 04215_ Dropped Lgt. Cannon. 04220_ Acquired Beamcaster. 04222_ Acquired 10 matter. A mysterious object appears at your location! LOCATION=UNKNOWN GOAL=ESCAPE 04292_ Dropped Scrap Shield. 04293_ Temporary Utility slot lost. 04294_ Core temporarily expanded with Weapon slot. Map ----- +----------------------------------------------------+ | | | | | | | | | | | | | | | | | | | | | | | | | | | | | | | | | | | | | | | | | ?????????????????????????????????????? | | ????????????????????????????#####????? | | ????????????#???????????????#"""#????? | | ??????????# #[ [#############"Y"###??? | | ????????? ! #??? | | ????????? @ ###### #??? | | ????????? #?????????? | | ??????????? ################?????????? | | ?????????????????????????????????????? | | ?????????????????????????????????????? | | ?????????????????????????????????????? | | ?????????????????????????????????????? | | ?????????????????????????????????????? | | ?????????????????????????????????????? | | ?????????????????????????????????????? | | ?????????????????????????????????????? | | ?????????????????????????????????????? | | ?????????????????????????????????????? | | ?????????????????????????????????????? | | ?????????????????????????????????????? | | ?????????????????????????????????????? | | ?????????????????????????????????????? | | ?????????????????????????????????????? | | ?????????????????????????????????????? | | ?????????????????????????????????????? | | ?????????????????????????????????????? | | ?????????????????????????????????????? | | ?????????????????????????????????????? | | ?????????????????????????????????????? | | ?????????????????????????????????????? | +----------------------------------------------------+ Best States ------------- Heat Dissipation 25 Energy Generation 18 Energy Capacity 250 Matter Stores 300 Matter Capacity 300 Sight Range 16 Terrain Scan Density 10 Armor Coverage 800 Evasion (%) 40 Recoil Reduction 3 Item Schematics ----------------- None Robot Schematics ------------------ None Fabricated ------------ Nothing Alien Tech Used ----------------- None Achievements -------------- None Challenges ------------ None Game ------ Seed AssaultGreatSuite Manual? 0 Play Time 00:37:35 Cumulative 366.1 hours Start 2024.02.28 @ 11:09:52 End 2024.02.28 @ 11:59:53 Sessions 1 Manual Loads 0 Difficulty Rogue Special Mode None Game No. 237 Rogue 214 Adventurer 6 Explorer 17 Win Type - Total 28 Types 20/0/4/1/0/1/1/1/0 Lore% 90 Gallery% 93 Achievement% 79 Wizard Run 0 Options --------- Layout 1 ASCII 0 Keyboard 0 Movement Numpad Keybinds 0 Fullscreen 1 Font 16/TamsynBold Map View 55x38 Zoom Use 0% Tactical HUD 1 Map Filters NONE Filters NONE Steam 1 RUN: 34017411-9f1f-4770-83b2-fb27b49bd291